bitfinex/quotes_BTCUSD_20250705
["timestamp","ask_amount","ask_price","bid_price","bid_amount"]
[1751731188813,0.93775886,108220.0,108210.0,0.32835256]
[1751731190099,0.92851877,108220.0,108210.0,0.32835256]
[1751731190271,0.93775886,108220.0,108210.0,0.32835256]
[1751731190472,1.2632755,108220.0,108210.0,0.32835256]
[1751731190714,1.2479755,108220.0,108210.0,0.32835256]
[1751731191325,1.23873541,108220.0,108210.0,0.32835256]
[1751731191499,1.2479755,108220.0,108210.0,0.32835256]
[1751731191886,1.23873541,108220.0,108210.0,0.32835256]
[1751731192501,0.58770213,108220.0,108210.0,0.32835256]
[1751731192746,1.23873541,108220.0,108210.0,0.32835256]
[1751731193061,0.58770213,108220.0,108210.0,0.32835256]
[1751731193265,0.91321877,108220.0,108210.0,0.32835256]
[1751731195961,0.90397885,108220.0,108210.0,0.32835256]
[1751731196166,0.91321877,108220.0,108210.0,0.32835256]
[1751731196357,0.72649877,108220.0,108210.0,0.38582834]
[1751731196572,0.91301877,108220.0,108210.0,0.38582834]
[1751731196808,0.92225886,108220.0,108210.0,0.38582834]
[1751731196966,0.91301877,108220.0,108210.0,0.38582834]
[1751731197745,0.71725885,108220.0,108210.0,0.38582834]
[1751731197948,0.91301877,108220.0,108210.0,0.38582834]
[1751731198390,0.9130445,108220.0,108210.0,0.38582834]
[1751731199113,0.9130445,108220.0,108210.0,0.32835256]
[1751731199980,1.9763185,108220.0,108210.0,0.32835256]
[1751731200928,1.74732005,108220.0,108210.0,0.32835256]
[1751731201355,1.78055863,108220.0,108210.0,0.32835256]
[1751731202392,1.74732005,108220.0,108210.0,0.32835256]
[1751731202991,1.93384005,108220.0,108210.0,0.32835256]
[1751731203606,1.94307997,108220.0,108210.0,0.32835256]
[1751731204342,1.95232006,108220.0,108210.0,0.32835256]
[1751731205036,1.72884064,108220.0,108210.0,0.32835256]
[1751731205281,1.589804,108220.0,108210.0,0.32835256]
[1751731205523,1.93380022,108220.0,108210.0,0.32835256]
[1751731205776,1.94304031,108220.0,108210.0,0.32835256]
[1751731205992,1.93380022,108220.0,108210.0,0.32835256]
[1751731206255,1.94304022,108220.0,108210.0,0.32835256]
[1751731206669,1.93380013,108220.0,108210.0,0.32835256]
[1751731209218,1.9245603,108220.0,108210.0,0.32835256]
[1751731209457,1.91532064,108220.0,108210.0,0.32835256]
[1751731209675,1.589804,108220.0,108210.0,0.32835256]
[1751731209878,1.403324,108220.0,108210.0,0.6538692]
[1751731210083,1.403324,108220.0,108210.0,0.85489005]
[1751731210253,1.403324,108220.0,108210.0,0.52937341]
[1751731210412,1.403324,108220.0,108210.0,0.85489005]
[1751731210614,1.403324,108220.0,108210.0,0.94632698]
[1751731211530,1.403324,108220.0,108210.0,0.85489005]
[1751731213349,1.419524,108220.0,108210.0,0.52937341]
[1751731213560,1.419524,108220.0,108210.0,0.85489005]
[1751731214078,1.419524,108220.0,108210.0,0.52937341]
[1751731214909,1.462821,108220.0,108210.0,0.52937341]
[1751731216971,1.78833764,108220.0,108210.0,0.52937341]
[1751731220578,1.462821,108220.0,108210.0,0.52937341]
[1751731220780,1.78833764,108220.0,108210.0,0.52937341]
[1751731221522,1.77213764,108220.0,108210.0,0.52937341]
[1751731221961,1.78733764,108220.0,108210.0,0.52937341]
[1751731225875,1.7965773,108220.0,108210.0,0.52937341]
[1751731226112,1.78733764,108220.0,108210.0,0.52937341]
[1751731230174,1.77213764,108220.0,108210.0,0.52937341]
[1751731230606,1.78733764,108220.0,108210.0,0.52937341]
[1751731235338,1.461821,108220.0,108210.0,0.52937341]
[1751731235540,1.78733764,108220.0,108210.0,0.52937341]
[1751731241190,1.461821,108220.0,108210.0,0.52937341]
[1751731241690,1.78733764,108220.0,108210.0,0.52937341]
[1751731243055,1.77213764,108220.0,108210.0,0.52937341]
[1751731249351,1.77213764,108220.0,108210.0,0.54597341]
[1751731249716,1.446621,108220.0,108210.0,0.54597341]
[1751731251600,1.446621,108220.0,108210.0,0.87149005]
[1751731252012,1.446621,108220.0,108210.0,0.91677005]
[1751731253597,1.446621,108220.0,108210.0,0.93207005]
[1751731254026,1.446621,108220.0,108210.0,0.59125341]
[1751731254228,1.446621,108220.0,108210.0,0.58925341]
[1751731254582,1.446621,108220.0,108210.0,0.59225341]
[1751731255421,1.446621,108220.0,108210.0,0.59025341]
[1751731255625,1.446621,108220.0,108210.0,0.59325341]
[1751731255944,1.446621,108220.0,108210.0,0.91877005]
[1751731259746,1.446621,108220.0,108210.0,0.59325341]
[1751731262861,1.77213764,108220.0,108210.0,0.59325341]
[1751731263408,1.446621,108220.0,108210.0,0.59325341]
[1751731263606,1.77213764,108220.0,108210.0,0.59325341]
[1751731269298,1.446621,108220.0,108210.0,0.93397005]
[1751731270132,1.446621,108220.0,108210.0,0.60845341]
[1751731270754,1.446621,108220.0,108210.0,0.59325341]
[1751731271549,1.446621,108220.0,108210.0,0.60885341]
[1751731272935,1.106621,108220.0,108210.0,0.93437005]
[1751731273137,1.106621,108220.0,108210.0,1.02580698]
[1751731274987,1.106621,108220.0,108210.0,1.02280698]
[1751731275188,1.106621,108220.0,108210.0,1.04857298]
[1751731275394,1.106621,108220.0,108210.0,1.05457298]
[1751731275795,1.106621,108220.0,108210.0,1.05357298]
[1751731276243,1.106621,108220.0,108210.0,1.05757298]
[1751731277906,1.106621,108220.0,108210.0,1.38308962]
[1751731279001,1.106621,108220.0,108210.0,1.37908962]
[1751731279310,1.106621,108220.0,108210.0,1.04757298]
[1751731279505,1.106621,108220.0,108210.0,1.37808962]
[1751731279666,1.106621,108220.0,108210.0,1.06057298]
[1751731285634,1.106621,108220.0,108210.0,0.41185941]
[1751731285853,1.106621,108220.0,108210.0,0.96893605]
[1751731286044,1.106621,108220.0,108210.0,0.41185941]
[1751731286254,1.106621,108220.0,108210.0,0.62781941]
[1751731286461,1.10632716,108220.0,108210.0,0.95333605]
[1751731287039,1.10632716,108220.0,108210.0,1.04477298]
[1751731287250,1.10632716,108220.0,108210.0,0.81321298]
[1751731287452,1.10632716,108220.0,108210.0,1.04477298]
[1751731287882,1.11556682,108220.0,108210.0,0.37965941]
[1751731288133,1.49146313,108220.0,108210.0,0.55039093]
[1751731288356,1.4637438,108220.0,108210.0,0.55039093]
[1751731288794,1.13822716,108220.0,108210.0,0.55693178]
[1751731289003,1.14746691,108220.0,108210.0,0.55193178]
[1751731289233,1.14746691,108220.0,108210.0,0.55493178]
[1751731289831,1.15670691,108220.0,108210.0,0.35941109]
[1751731290056,1.15670691,108220.0,108210.0,0.55493178]
[1751731290422,1.50994442,108220.0,108210.0,0.3386293]
[1751731290629,1.68551339,108220.0,108210.0,0.53434483]
[1751731290836,1.50070467,108220.0,108210.0,0.56736748]
[1751731291037,1.50070467,108220.0,108210.0,0.55812662]
[1751731291156,1.49146415,108220.0,108210.0,0.56736739]
[1751731291368,1.48222389,108220.0,108210.0,0.57660808]
[1751731291557,1.49146415,108220.0,108210.0,0.57660808]
[1751731291782,1.48222389,108220.0,108210.0,0.57660808]
[1751731291996,1.49146415,108220.0,108210.0,0.56736739]
[1751731292258,1.48222389,108220.0,108210.0,0.56736739]
[1751731292455,1.48222389,108220.0,108210.0,0.57660808]
[1751731292768,1.15670725,108220.0,108210.0,0.57660808]
[1751731292962,1.49146415,108220.0,108210.0,0.57660808]
[1751731293139,1.48222389,108220.0,108210.0,0.57660808]
[1751731293551,1.49146415,108220.0,108210.0,0.57660808]
[1751731294645,1.49146406,108220.0,108210.0,0.57660808]
[1751731295649,1.17518777,108220.0,108210.0,0.57660808]
[1751731296083,1.17518768,108220.0,108210.0,0.57660808]
[1751731296990,1.50070432,108220.0,108210.0,0.57660808]
[1751731297192,1.49146406,108220.0,108210.0,0.57660808]
[1751731299997,1.17518768,108220.0,108210.0,0.57660808]
[1751731301431,1.50070432,108220.0,108210.0,0.57660808]
[1751731303984,1.50994467,108220.0,108210.0,0.57660808]
[1751731304498,1.50070432,108220.0,108210.0,0.57660808]
[1751731304702,1.17518768,108220.0,108210.0,0.57660808]
[1751731307740,1.50070432,108220.0,108210.0,0.57660808]
[1751731309145,1.50075432,108220.0,108210.0,0.57660808]
[1751731310570,1.50999467,108220.0,108210.0,0.57660808]
[1751731310975,1.18447803,108220.0,108210.0,0.57660808]
[1751731311640,1.16787803,108220.0,108210.0,0.57660808]
[1751731312911,1.49339467,108220.0,108210.0,0.57660808]
[1751731313505,1.66896339,108220.0,108210.0,0.5488856]
[1751731313706,1.67820382,108220.0,108210.0,0.55812646]
[1751731313909,1.67820382,108220.0,108210.0,0.56736723]
[1751731314106,1.4933951,108220.0,108210.0,0.56736723]
[1751731314598,1.4933951,108220.0,108210.0,0.57660792]
[1751731314958,1.49215213,108220.0,108210.0,0.57660792]
[1751731315737,1.16663549,108220.0,108210.0,0.57660792]
[1751731315942,1.49215213,108220.0,108210.0,0.57660792]
[1751731318908,1.67696085,108220.0,108210.0,0.56736723]
[1751731319122,1.66772076,108220.0,108210.0,0.56736723]
[1751731319340,1.66772076,108220.0,108210.0,0.55812646]
[1751731319551,1.65848059,108220.0,108210.0,0.37184646]
[1751731321157,1.65848059,108220.0,108210.0,0.38108723]
[1751731321360,1.65848059,108220.0,108210.0,0.37184646]
[1751731325276,1.33296395,108220.0,108210.0,0.37184646]
[1751731326101,1.65848059,108220.0,108210.0,0.37184646]
[1751731326740,1.33296395,108220.0,108210.0,0.37184646]
[1751731329350,1.65848059,108220.0,108210.0,0.37184646]
[1751731331870,1.33296395,108220.0,108210.0,0.37184646]
[1751731332078,1.65848059,108220.0,108210.0,0.37184646]
[1751731334443,1.64924033,108220.0,108210.0,0.3626056]
[1751731334872,1.64924033,108220.0,108210.0,0.15929748]
[1751731335082,1.97227619,108220.0,108210.0,0.15929748]
[1751731335293,2.15851619,108220.0,108210.0,0.15929748]
[1751731336546,2.15851619,108220.0,108210.0,0.15629748]
[1751731336994,2.15851619,108220.0,108210.0,0.15329748]
[1751731337207,2.15851619,108220.0,108210.0,0.15429748]
[1751731337710,1.83299955,108220.0,108210.0,0.15429748]
[1751731338350,1.83299955,108220.0,108210.0,0.15529748]
[1751731338594,1.83299955,108220.0,108210.0,0.34936448]
[1751731339178,1.83299955,108220.0,108210.0,0.15529748]
[1751731339785,1.83299955,108220.0,108210.0,0.16453877]
[1751731340767,1.83299955,108220.0,108210.0,0.15529748]
[1751731341180,1.83299955,108220.0,108210.0,0.14075663]
[1751731341384,2.19175892,108220.0,108210.0,0.14075663]
[1751731341798,1.54072564,108220.0,108210.0,0.14075663]
[1751731342034,2.19175892,108220.0,108210.0,0.14075663]
[1751731343325,2.15851619,108220.0,108210.0,0.14075663]
[1751731344629,2.19174,108220.0,108210.0,0.09551663]
[1751731344874,2.53174,108220.0,108210.0,0.09551663]
[1751731345059,2.53174,108220.0,108210.0,0.0040797]
[1751731345301,2.54120476,108220.0,108210.0,0.0040797]
[1751731345713,2.54120476,108220.0,108210.0,0.0030797]
[1751731346106,2.54220476,108220.0,108210.0,0.0020797]
[1751731346722,1.89117148,108220.0,108210.0,0.0020797]
[1751731347069,2.54220476,108220.0,108210.0,0.0020797]
[1751731353099,1.89117148,108220.0,108210.0,0.0020797]
[1751731353332,2.54220476,108220.0,108210.0,0.0020797]
[1751731353766,2.35596476,108220.0,108210.0,0.0020797]
[1751731353977,2.54220476,108220.0,108210.0,0.0020797]
[1751731357921,1.89117148,108220.0,108210.0,0.0020797]
[1751731358123,2.54220476,108220.0,108210.0,0.0020797]
[1751731360127,0.21036691,108210.0,108200.0,0.0082903]
[1751731360356,0.72212355,108210.0,108200.0,0.09972723]
[1751731361564,0.72212355,108210.0,108200.0,0.10072723]
[1751731362207,0.72212355,108210.0,108200.0,0.10172723]
[1751731362529,0.72212355,108210.0,108200.0,0.10072723]
[1751731362715,0.72312355,108210.0,108200.0,0.09972723]
[1751731365295,0.39760691,108210.0,108200.0,0.09972723]
[1751731365723,0.72312355,108210.0,108200.0,0.09972723]
[1751731366543,0.53688355,108210.0,108200.0,0.09972723]
[1751731366780,0.70682355,108210.0,108200.0,0.09972723]
[1751731366996,0.52058355,108210.0,108200.0,0.10896937]
[1751731367205,0.70682355,108210.0,108200.0,0.09972723]
[1751731374339,0.74005674,108210.0,108200.0,0.09972723]
[1751731376512,0.4145401,108210.0,108200.0,0.09972723]
[1751731376715,0.70682355,108210.0,108200.0,0.09972723]
[1751731377325,0.74007691,108210.0,108200.0,0.09972723]
[1751731379483,0.41456027,108210.0,108200.0,0.09972723]
[1751731379690,0.74007691,108210.0,108200.0,0.09972723]
[1751731381369,0.70682355,108210.0,108200.0,0.09972723]
[1751731382652,0.72342355,108210.0,108200.0,0.09972723]
[1751731386149,0.70682355,108210.0,108200.0,0.09972723]
[1751731387001,0.38130691,108210.0,108200.0,0.09972723]
[1751731387204,0.70682355,108210.0,108200.0,0.09972723]
[1751731392210,0.38130691,108210.0,108200.0,0.09972723]
[1751731392572,0.70682355,108210.0,108200.0,0.09972723]
[1751731394578,0.70687355,108210.0,108200.0,0.09972723]
[1751731402004,0.38135691,108210.0,108200.0,0.10896937]
[1751731402247,0.70687355,108210.0,108200.0,0.10896937]
[1751731404051,0.70687355,108210.0,108200.0,0.29381225]
[1751731404268,0.23761933,108210.0,108200.0,0.3030543]
[1751731404483,0.71611458,108210.0,108200.0,0.31229627]
[1751731404687,0.74937597,108210.0,108200.0,0.31229627]
[1751731405270,0.74937597,108210.0,108200.0,0.3030543]
[1751731405506,0.56313597,108210.0,108200.0,0.31229627]
[1751731405743,0.74937597,108210.0,108200.0,0.3030543]
[1751731407146,0.74937597,108210.0,108200.0,0.29381225]
[1751731407615,0.76497597,108210.0,108200.0,0.29381225]
[1751731408091,0.75573494,108210.0,108200.0,0.10896937]
[1751731409647,0.75573494,108210.0,108200.0,0.3030543]
[1751731411312,0.74013494,108210.0,108200.0,0.32769627]
[1751731411791,0.74013989,108210.0,108200.0,0.32769627]
[1751731413106,0.74013989,108210.0,108200.0,0.3030543]
[1751731416665,0.74013989,108210.0,108200.0,0.32879627]
[1751731417113,0.74013989,108210.0,108200.0,0.33803815]
[1751731420836,0.74013989,108210.0,108200.0,0.3195543]
[1751731422285,0.74013989,108210.0,108200.0,0.3030543]
[1751731423153,0.55389989,108210.0,108200.0,0.3030543]
[1751731423357,0.74013989,108210.0,108200.0,0.32779627]
[1751731425685,0.74013989,108210.0,108200.0,0.3185543]
[1751731426088,0.74013989,108210.0,108200.0,0.3030543]
[1751731430278,0.74013989,108210.0,108200.0,0.10896937]
[1751731430480,0.73089878,108210.0,108200.0,0.10896937]
[1751731439335,0.73089878,108210.0,108200.0,0.3030543]
[1751731441386,0.73089878,108210.0,108200.0,0.29381225]
[1751731441835,0.73089878,108210.0,108200.0,0.10896937]
[1751731443276,0.73089878,108210.0,108200.0,0.09972723]
[1751731443688,0.40538214,108210.0,108200.0,0.09972723]
[1751731443861,0.73089878,108210.0,108200.0,0.09972723]
[1751731444037,0.74689878,108210.0,108200.0,0.09972723]
[1751731445419,0.42138214,108210.0,108200.0,0.09972723]
[1751731445620,0.74689878,108210.0,108200.0,0.09972723]
[1751731452345,0.56065878,108210.0,108200.0,0.09972723]
[1751731452541,0.74685878,108210.0,108200.0,0.09972723]
[1751731452763,0.56065878,108210.0,108200.0,0.09972723]
[1751731453098,0.74685878,108210.0,108200.0,0.09972723]
[1751731453423,0.56065878,108210.0,108200.0,0.09972723]
[1751731453670,0.74685878,108210.0,108200.0,0.09972723]
[1751731472803,0.76235878,108210.0,108200.0,0.09972723]
[1751731475078,0.43684214,108210.0,108200.0,0.09972723]
[1751731475301,0.74685878,108210.0,108200.0,0.09972723]
[1751731475943,0.42134214,108210.0,108200.0,0.09972723]
[1751731476169,0.74685878,108210.0,108200.0,0.09972723]
[1751731481891,0.42134214,108210.0,108200.0,0.09972723]
[1751731482125,0.73085878,108210.0,108200.0,0.09972723]
[1751731488752,0.73085878,108210.0,108200.0,0.10896937]
[1751731488971,0.69759244,108210.0,108200.0,0.31031225]
[1751731489271,0.70683355,108210.0,108200.0,0.31031225]
[1751731489465,0.70683355,108210.0,108200.0,0.3195543]
[1751731489669,0.38131691,108210.0,108200.0,0.32879627]
[1751731489962,0.70683355,108210.0,108200.0,0.32879627]
[1751731490121,0.70691355,108210.0,108200.0,0.34479627]
[1751731491192,0.70687355,108210.0,108200.0,0.34479627]
[1751731494472,0.70687355,108210.0,108200.0,0.35403815]
[1751731495161,0.52063355,108210.0,108200.0,0.35403815]
[1751731495383,0.52063355,108210.0,108200.0,0.33803815]
[1751731496272,0.19511691,108210.0,108200.0,0.35443815]
[1751731496489,0.52063355,108210.0,108200.0,0.35443815]
[1751731496913,0.52063355,108210.0,108200.0,0.33803815]
[1751731500033,0.52063355,108210.0,108200.0,0.32879627]
[1751731500468,0.51139244,108210.0,108200.0,0.3195543]
[1751731500687,0.51139244,108210.0,108200.0,0.3030543]
[1751731503415,0.51139244,108210.0,108200.0,0.09972723]
[1751731506421,0.51139244,108210.0,108200.0,0.10896937]
[1751731516307,0.51139244,108210.0,108200.0,0.29381225]
[1751731517612,0.51139244,108210.0,108200.0,0.3030543]
[1751731518184,0.54465731,108210.0,108200.0,0.3030543]
[1751731520399,0.54465731,108210.0,108200.0,0.29381225]
[1751731521732,0.54465731,108210.0,108200.0,0.3030543]
[1751731523359,0.54465731,108210.0,108200.0,0.3193543]
[1751731532636,0.54465731,108210.0,108200.0,0.11602723]
[1751731532855,0.54465731,108210.0,108200.0,0.09972723]
[1751731535067,0.56085731,108210.0,108200.0,0.09972723]
[1751731537242,0.23534067,108210.0,108200.0,0.09972723]
[1751731537405,0.52759244,108210.0,108200.0,0.09972723]
[1751731537636,0.56085731,108210.0,108200.0,0.09972723]
[1751731550607,0.23534067,108210.0,108200.0,0.09972723]
[1751731550857,0.52759244,108210.0,108200.0,0.09972723]
[1751731551065,0.56085731,108210.0,108200.0,0.09972723]
[1751731552022,0.55567174,108210.0,108200.0,0.09972723]
[1751731555103,1.22118838,108210.0,108200.0,0.0082903]
[1751731555321,1.23728838,108210.0,108200.0,0.0082903]
[1751731555556,1.28535309,108210.0,108200.0,0.0082903]
[1751731556010,1.34073343,108210.0,108200.0,0.0082903]
[1751731556209,1.28535309,108210.0,108200.0,0.0082903]
[1751731556415,1.28635309,108210.0,108200.0,0.0082903]
[1751731556853,1.28535309,108210.0,108200.0,0.0082903]
[1751731557060,1.28635309,108210.0,108200.0,0.0082903]
[1751731557299,1.28835309,108210.0,108200.0,0.0082903]
[1751731557908,1.29235309,108210.0,108200.0,0.0082903]
[1751731558528,1.2858567,108210.0,108200.0,0.0082903]
[1751731558736,1.29234367,108210.0,108200.0,0.0082903]
[1751731558935,1.24428838,108210.0,108200.0,0.0082903]
[1751731559166,1.29234367,108210.0,108200.0,0.0082903]
[1751731560672,1.76915282,108210.0,108200.0,0.0082903]
[1751731560888,1.95551282,108210.0,108200.0,0.0082903]
[1751731561565,1.68537652,108210.0,108200.0,0.0082903]
[1751731562221,1.65616394,108210.0,108200.0,0.0082903]
[1751731562658,1.5701406,108210.0,108200.0,0.0082903]
[1751731563745,2.2701406,108210.0,108200.0,0.0082903]
[1751731563973,1.61910732,108210.0,108200.0,0.0082903]
[1751731564191,2.27013239,108210.0,108200.0,0.0082903]
[1751731564404,1.61909911,108210.0,108200.0,0.0082903]
[1751731564623,2.27013239,108210.0,108200.0,0.0082903]
[1751731566379,1.61909911,108210.0,108200.0,0.0082903]
[1751731566604,2.27013239,108210.0,108200.0,0.0082903]
[1751731567266,2.2701304,108210.0,108200.0,0.0082903]
[1751731571127,2.26365363,108210.0,108200.0,0.0082903]
[1751731571341,1.56365363,108210.0,108200.0,0.0082903]
[1751731572172,1.57012961,108210.0,108200.0,0.0082903]
[1751731572607,0.91909633,108210.0,108200.0,0.0082903]
[1751731572878,1.57012961,108210.0,108200.0,0.0082903]
[1751731573535,1.56365363,108210.0,108200.0,0.0082903]
[1751731574122,2.05055363,108210.0,108200.0,0.0082903]
[1751731574326,2.75055363,108210.0,108200.0,0.0082903]
[1751731579235,2.75703285,108210.0,108200.0,0.0082903]
[1751731584363,2.81241319,108210.0,108200.0,0.0082903]
[1751731587186,2.77084487,108210.0,108200.0,0.0082903]
[1751731588242,2.07084487,108210.0,108200.0,0.0082903]
[1751731588670,2.39636151,108210.0,108200.0,0.0082903]
[1751731588853,2.15391538,108210.0,108200.0,0.0082903]
[1751731590928,2.47943202,108210.0,108200.0,0.0082903]
[1751731591133,3.17943202,108210.0,108200.0,0.0082903]
[1751731591449,2.85391538,108210.0,108200.0,0.0082903]
[1751731591600,2.15391538,108210.0,108200.0,0.0082903]
[1751731592204,1.66701538,108210.0,108200.0,0.0082903]
[1751731592610,1.68481538,108210.0,108200.0,0.0082903]
[1751731593303,2.01035992,108210.0,108200.0,0.0082903]
[1751731593507,1.95495168,108210.0,108200.0,0.0082903]
[1751731593719,1.62943504,108210.0,108200.0,0.0082903]
[1751731594049,1.95495168,108210.0,108200.0,0.0082903]
[1751731594162,1.98559468,108210.0,108200.0,0.0082903]
[1751731594628,2.68559468,108210.0,108200.0,0.0082903]
[1751731595051,2.68359468,108210.0,108200.0,0.0082903]
[1751731595256,2.68659468,108210.0,108200.0,0.0082903]
[1751731595719,2.68059468,108210.0,108200.0,0.0082903]
[1751731596127,2.68459468,108210.0,108200.0,0.0082903]
[1751731597097,2.35907804,108210.0,108200.0,0.0082903]
[1751731597302,2.68459468,108210.0,108200.0,0.0082903]
[1751731597548,2.35907804,108210.0,108200.0,0.0082903]
[1751731597758,2.35908712,108210.0,108200.0,0.0082903]
[1751731597939,2.32195582,108210.0,108200.0,0.0082903]
[1751731599715,2.32844394,108210.0,108200.0,0.0082903]
[1751731599850,2.32195582,108210.0,108200.0,0.0082903]
[1751731600267,2.32199582,108210.0,108200.0,0.0082903]
[1751731600472,2.37734796,108210.0,108200.0,0.0082903]
[1751731602717,2.36124796,108210.0,108200.0,0.0082903]
[1751731603085,2.17484796,108210.0,108200.0,0.0082903]
[1751731603292,2.34504796,108210.0,108200.0,0.0082903]
[1751731604131,2.1651358,108210.0,108200.0,0.0082903]
[1751731604332,2.3515358,108210.0,108200.0,0.0082903]
[1751731605378,2.34504796,108210.0,108200.0,0.0082903]
[1751731606435,2.15864796,108210.0,108200.0,0.0082903]
[1751731606638,2.34500796,108210.0,108200.0,0.0082903]
[1751731609592,1.83313132,108210.0,108200.0,0.0238903]
[1751731609813,1.64082388,108210.0,108200.0,0.0390903]
[1751731610028,1.86870111,108210.0,108200.0,0.0390903]
[1751731610453,0.65682447,108210.0,108200.0,0.0390903]
[1751731610743,0.92698897,108210.0,108200.0,0.0238903]
[1751731610957,1.45546561,108210.0,108200.0,0.0082903]
[1751731611168,1.57067333,108210.0,108200.0,0.0082903]
[1751731611385,1.58301403,108210.0,108200.0,0.0082903]
[1751731611596,1.53577103,108210.0,108200.0,0.0082903]
[1751731611817,1.45270052,108210.0,108200.0,0.0082903]
[1751731612045,1.45274052,108210.0,108200.0,0.0082903]
[1751731612250,1.45274052,108210.0,108200.0,0.0238903]
[1751731613848,1.12722388,108210.0,108200.0,0.0238903]
[1751731619280,1.45274052,108210.0,108200.0,0.0238903]
[1751731623329,1.12722388,108210.0,108200.0,0.0238903]
[1751731623759,1.45274052,108210.0,108200.0,0.0238903]
[1751731625990,1.49427371,108210.0,108200.0,0.0238903]
[1751731626200,0.98235707,108210.0,108200.0,0.0238903]
[1751731626439,0.98235707,108210.0,108200.0,0.0389903]
[1751731626669,1.16867707,108210.0,108200.0,0.0389903]
[1751731629231,1.49419371,108210.0,108200.0,0.0389903]
[1751731630133,1.43884157,108210.0,108200.0,0.0389903]
[1751731630993,1.43184157,108210.0,108200.0,0.0389903]
[1751731631217,1.11032493,108210.0,108200.0,0.0389903]
[1751731634373,1.11032493,108210.0,108200.0,0.0238903]
[1751731639776,1.43584157,108210.0,108200.0,0.0238903]
[1751731646075,0.78480829,108210.0,108200.0,0.0238903]
[1751731646287,1.43584157,108210.0,108200.0,0.0238903]
[1751731648437,1.11032493,108210.0,108200.0,0.0238903]
[1751731651577,0.78480829,108210.0,108200.0,0.0238903]
[1751731651822,1.11032493,108210.0,108200.0,0.0238903]
[1751731658455,1.49119371,108210.0,108200.0,0.0238903]
[1751731660021,1.49119371,108210.0,108200.0,0.0082903]
[1751731660462,1.50679371,108210.0,108200.0,0.0082903]
[1751731666241,0.85576043,108210.0,108200.0,0.0082903]
[1751731666474,1.50679371,108210.0,108200.0,0.0082903]
[1751731669551,1.50639371,108210.0,108200.0,0.0082903]
[1751731669972,1.46486052,108210.0,108200.0,0.0082903]
[1751731671047,1.57159745,108210.0,108200.0,0.0082903]
[1751731671898,1.9801846,108210.0,108200.0,0.0082903]
[1751731672121,1.98468804,108210.0,108200.0,0.0082903]
[1751731672346,1.98468804,108210.0,108200.0,1e-08]
[1751731672347,1.98467696,108210.0,108200.0,1e-08]
[1751731672572,0.00924197,108200.0,108190.0,0.0036232]
[1751731672794,1.98032754,108200.0,108190.0,0.0036232]
[1751731673231,2.47093254,108200.0,108190.0,0.0036232]
[1751731673862,2.47793254,108200.0,108190.0,0.0036232]
[1751731674907,2.48193254,108200.0,108190.0,0.0036232]
[1751731675366,2.53721949,108200.0,108190.0,0.0036232]
[1751731678743,2.53721949,108200.0,108190.0,1e-08]
[1751731679824,3.23721949,108200.0,108190.0,1e-08]
[1751731682790,3.26786249,108200.0,108190.0,1e-08]
[1751731686265,3.96786249,108200.0,108190.0,1e-08]
[1751731686510,3.26786249,108200.0,108190.0,1e-08]
[1751731689633,2.78096249,108200.0,108190.0,1e-08]
[1751731690301,2.59472249,108200.0,108190.0,1e-08]
[1751731690518,2.78100249,108200.0,108190.0,1e-08]
[1751731697483,2.72571554,108200.0,108190.0,1e-08]
[1751731698576,2.71041554,108200.0,108190.0,1e-08]
[1751731700995,2.71041554,108200.0,108190.0,0.00010001]
[1751731701193,2.71046554,108200.0,108190.0,0.00010001]
[1751731701437,2.62741457,108200.0,108190.0,0.00010001]
[1751731701899,2.33913053,108200.0,108190.0,0.01650001]
[1751731702560,2.27155493,108200.0,108190.0,0.00010001]
[1751731702829,1.89707157,108200.0,108190.0,0.00010001]
[1751731704413,2.59707157,108200.0,108190.0,0.00010001]
[1751731721252,2.5638067,108200.0,108190.0,0.00010001]
[1751731721460,2.5970508,108200.0,108190.0,0.00010001]
[1751731724667,1.62050088,108200.0,108190.0,0.00010001]
[1751731724896,2.5815508,108200.0,108190.0,0.00010001]
[1751731726567,1.8815508,108200.0,108190.0,0.00010001]
[1751731727408,1.99231149,108200.0,108190.0,0.00010001]
[1751731728629,1.99231538,108200.0,108190.0,0.00010001]
[1751731733234,1.99231554,108200.0,108190.0,0.00010001]
[1751731734825,2.00821554,108200.0,108190.0,0.00010001]
[1751731739569,2.70821554,108200.0,108190.0,0.00010001]
[1751731743518,2.69231554,108200.0,108190.0,0.00010001]
[1751731746570,2.70841554,108200.0,108190.0,0.00010001]
[1751731758317,2.69231554,108200.0,108190.0,0.00010001]
[1751731758522,2.69231554,108200.0,108190.0,0.03110001]
[1751731758777,2.69231554,108200.0,108190.0,0.01540001]
[1751731764829,2.69238857,108200.0,108190.0,0.00010001]
[1751731766134,1.99238857,108200.0,108190.0,0.00010001]
[1751731766340,2.00798857,108200.0,108190.0,0.00010001]
[1751731767410,2.00798854,108200.0,108190.0,0.00010001]
[1751731769148,2.70798854,108200.0,108190.0,0.00010001]
[1751731770805,1.73143862,108200.0,108190.0,0.00010001]
[1751731771016,2.70798854,108200.0,108190.0,0.00010001]
[1751731771913,2.71448194,108200.0,108190.0,0.00010001]
[1751731778041,2.73018194,108200.0,108190.0,0.00010001]
[1751731779126,2.71448194,108200.0,108190.0,0.00010001]
[1751731779300,2.71448141,108200.0,108190.0,0.00010001]
[1751731782191,2.70798854,108200.0,108190.0,0.00010001]
[1751731782396,2.71448134,108200.0,108190.0,0.00010001]
[1751731784425,2.01448134,108200.0,108190.0,0.00010001]
[1751731787454,2.71448134,108200.0,108190.0,0.00010001]
[1751731794425,2.01448134,108200.0,108190.0,0.00010001]
[1751731795982,1.03793142,108200.0,108190.0,0.00010001]
[1751731796195,2.01448134,108200.0,108190.0,0.00010001]
[1751731797482,2.71448134,108200.0,108190.0,0.00010001]
[1751731798061,1.73793142,108200.0,108190.0,0.00010001]
[1751731798282,2.71448134,108200.0,108190.0,0.00010001]
[1751731800604,2.3733647,108200.0,108190.0,0.00010001]
[1751731800812,2.3733647,108200.0,108190.0,0.03270001]
[1751731801644,1.72233142,108200.0,108190.0,0.03270001]
[1751731801863,2.3733647,108200.0,108190.0,0.03270001]
[1751731802515,2.37336407,108200.0,108190.0,0.03270001]
[1751731804767,2.37336407,108200.0,108190.0,0.01660001]
[1751731805849,2.18708407,108200.0,108190.0,0.01660001]
[1751731806074,2.26249186,108200.0,108190.0,0.03260001]
[1751731806520,2.34560117,108200.0,108190.0,0.03260001]
[1751731808892,1.69456789,108200.0,108190.0,0.03260001]
[1751731809107,2.11416117,108200.0,108190.0,0.03260001]
[1751731809322,2.30040117,108200.0,108190.0,0.03260001]
[1751731810214,1.60040117,108200.0,108190.0,0.03260001]
[1751731812514,1.48404286,108200.0,108190.0,0.03260001]
[1751731812727,1.29780286,108200.0,108190.0,0.03260001]
[1751731812945,1.48404286,108200.0,108190.0,0.03260001]
[1751731815130,1.29780286,108200.0,108190.0,0.03260001]
[1751731815315,1.48404286,108200.0,108190.0,0.03260001]
[1751731815757,1.29780286,108200.0,108190.0,0.03260001]
[1751731815938,1.48004286,108200.0,108190.0,0.03260001]
[1751731816325,1.47604286,108200.0,108190.0,0.03260001]
[1751731816499,1.48004286,108200.0,108190.0,0.03260001]